fUST/lending_fUST_20240410
["ID","MTS","AMOUNT","RATE_DAILY","PERIOD"]
[322049673,1712724633416,-500.0,0.00022182,2]
[322049674,1712724633426,-503.18560348,0.00022182,2]
[322049675,1712724633436,-500.0,0.00022182,2]
[322049676,1712724633446,-626.88,0.00022182,2]
[322049677,1712724633456,-500.0,0.00022182,2]
[322049678,1712724633466,-500.0,0.00022182,2]
[322049679,1712724633477,-500.0,0.00022182,2]
[322049680,1712724633490,-520.16,0.00022182,2]
[322049681,1712724633500,-500.0,0.00022182,2]
[322049682,1712724633510,-500.0,0.00022182,2]
[322049683,1712724633521,-500.0,0.00022182,2]
[322049684,1712724633532,-500.0,0.00022183,2]
[322049685,1712724633541,-500.0,0.00022183,2]
[322049686,1712724633552,-500.0,0.00022183,2]
[322049687,1712724633562,-500.0,0.00022183,2]
[322049688,1712724633573,-504.57433951,0.00022183,2]
[322049689,1712724633584,-500.0,0.00022183,2]
[322049690,1712724633594,-500.0,0.00022183,2]
[322049691,1712724633605,-500.0,0.00022183,2]
[322049692,1712724633615,-505.20185528,0.00022183,2]
[322049693,1712724633625,-500.0,0.00022183,2]
[322049694,1712724633636,-500.0,0.00022183,2]
[322049695,1712724633646,-208.1986475,0.00022183,2]
[322049733,1712724638713,-500.0,0.00022175,2]
[322049734,1712724638723,-292.9000006,0.00022183,2]
[322049735,1712724638731,-500.0,0.00022183,2]
[322049736,1712724638740,-500.0,0.00022183,2]
[322049737,1712724638749,-492.16815686,0.00022183,2]
[322049738,1712724638758,-500.0,0.00022183,2]
[322049739,1712724638767,-503.02102843,0.00022183,2]
[322049740,1712724638776,-500.0,0.00022183,2]
[322049741,1712724638786,-503.77683325,0.00022183,2]
[322049742,1712724638795,-500.0,0.00022183,2]
[322049743,1712724638804,-500.0,0.00022183,2]
[322049744,1712724638813,-500.0,0.00022183,2]
[322049745,1712724638822,-500.0,0.00022183,2]
[322049746,1712724638831,-500.0,0.00022183,2]
[322049747,1712724638839,-500.0,0.00022183,2]
[322049748,1712724638848,-500.0,0.00022183,2]
[322049749,1712724638858,-500.0,0.00022183,2]
[322049750,1712724638866,-232.63186136,0.00022183,2]
[322049751,1712724638875,-500.0,0.00022183,2]
[322049752,1712724638884,-500.0,0.00022183,2]
[322049753,1712724638893,-500.0,0.00022183,2]
[322049754,1712724638902,-500.0,0.00022183,2]
[322049755,1712724638912,-500.0,0.00022183,2]
[322049756,1712724638921,-500.0,0.00022183,2]
[322049757,1712724638931,-644.21022522,0.00022183,2]
[322049758,1712724638941,-622.78627392,0.00022183,2]
[322049759,1712724638950,-505.0,0.00022183,2]
[322049760,1712724638959,-406.97162284,0.00022183,2]
[322049761,1712724638968,-500.0,0.00022183,2]
[322049762,1712724638978,-500.0,0.00022183,2]
[322049763,1712724638988,-500.0,0.00022183,2]
[322049764,1712724638997,-2612.22,0.00022183,2]
[322049765,1712724639007,-500.0,0.00022183,2]
[322049766,1712724639017,-500.0,0.00022183,2]
[322049767,1712724639027,-500.0,0.00022183,2]
[322049768,1712724639038,-500.0,0.00022183,2]
[322049769,1712724639049,-500.0,0.00022183,2]
[322049770,1712724639059,-500.0,0.00022191,2]
[322049771,1712724639069,-500.0,0.00022191,2]
[322049772,1712724639078,-797.37,0.00022191,2]
[322049773,1712724639087,-500.0,0.00022191,2]
[322049774,1712724639097,-500.0,0.00022191,2]
[322049775,1712724639106,-341.57944337,0.00022191,2]
[322049776,1712724639115,-500.0,0.00022191,2]
[322049777,1712724639125,-500.0,0.00022191,2]
[322049778,1712724639134,-500.0,0.00022191,2]
[322049779,1712724639143,-171.83381504,0.00022191,2]
[322049780,1712724639153,-546.21,0.00022191,2]
[322049781,1712724639162,-500.0,0.00022191,2]
[322049782,1712724639171,-155.94198528,0.0002235,2]
[322049783,1712724639180,-452.06133573,0.00022448,2]
[322049784,1712724639190,-500.0,0.00022448,2]
[322049785,1712724639199,-500.0,0.00022448,2]
[322049786,1712724639208,-299.21246041,0.00022448,2]
[322049787,1712724639217,-188.33426589,0.00022448,2]
[322049788,1712724639226,-500.0,0.00022448,2]
[322049789,1712724639235,-500.0,0.00022448,2]
[322049790,1712724639244,-438.27934081,0.00022449,2]
[322049791,1712724639254,-500.0,0.00022449,2]
[322049792,1712724639263,-500.0,0.00022449,2]
[322049793,1712724639272,-500.0,0.00022449,2]
[322049794,1712724639284,-500.0,0.00022449,2]
[322049795,1712724639293,-500.0,0.00022449,2]
[322049796,1712724639302,-500.0,0.00022449,2]
[322049797,1712724639312,-500.0,0.00022449,2]
[322049798,1712724639321,-500.0,0.00022449,2]
[322049799,1712724639330,-500.0,0.00022449,2]
[322049800,1712724639340,-500.0,0.00022449,2]
[322049801,1712724639349,-500.0,0.00022449,2]
[322049802,1712724639358,-500.0,0.00022449,2]
[322049803,1712724639368,-500.0,0.00022449,2]
[322049804,1712724639377,-500.0,0.00022449,2]
[322049805,1712724639386,-500.0,0.00022449,2]
[322049806,1712724639395,-1619.4,0.00022449,2]
[322049807,1712724639404,-2591.52,0.00022449,2]
[322049808,1712724639413,-500.0,0.00022449,2]
[322049809,1712724639422,-501.01806855,0.00022449,2]
[322049810,1712724639431,-500.0,0.00022449,2]
[322049811,1712724639441,-500.0,0.00022449,2]
[322049812,1712724639450,-500.0,0.00022449,2]
[322049813,1712724639459,-1048.16,0.00022449,2]
[322049814,1712724639468,-500.0,0.00022449,2]
[322049815,1712724639477,-500.0,0.00022449,2]
[322049816,1712724639488,-500.0,0.00022449,2]
[322049817,1712724639498,-500.0,0.00022456,2]
[322049818,1712724639507,-626.88,0.00022456,2]
[322049819,1712724639516,-500.0,0.00022456,2]
[322049820,1712724639526,-520.16,0.00022456,2]
[322049821,1712724639538,-500.0,0.00022456,2]
[322049822,1712724639547,-500.0,0.00022456,2]
[322049823,1712724639557,-500.0,0.00022456,2]
[322049824,1712724639567,-500.0,0.00022457,2]
[322049825,1712724639576,-500.0,0.00022457,2]
[322049826,1712724639586,-500.0,0.00022457,2]
[322049827,1712724639595,-500.0,0.00022457,2]
[322049828,1712724639604,-500.0,0.00022457,2]
[322049829,1712724639614,-428.10313705,0.00022457,2]
[322049830,1712724639623,-500.0,0.00022457,2]
[322049831,1712724639633,-471.47185933,0.00022457,2]
[322049832,1712724639642,-500.0,0.00022457,2]
[322049833,1712724639652,-500.0,0.00022457,2]
[322049834,1712724639662,-500.0,0.00022457,2]
[322049835,1712724639672,-505.0,0.00022457,2]
[322049836,1712724639682,-500.0,0.00022457,2]
[322049837,1712724639692,-2612.22,0.00022457,2]
[322049838,1712724639702,-562.38731302,0.00022457,2]
[322049839,1712724639711,-500.0,0.00022457,2]
[322049840,1712724639721,-500.0,0.00022457,2]
[322049841,1712724639730,-500.0,0.00022457,2]
[322049842,1712724639739,-500.0,0.00022465,2]
[322049843,1712724639748,-307.88566827,0.00022465,2]
[322049844,1712724639758,-797.37,0.00022465,2]
[322049845,1712724639768,-500.0,0.00022465,2]
[322049846,1712724639778,-500.0,0.00022465,2]
[322049847,1712724639789,-500.0,0.00022465,2]
[322049848,1712724639798,-500.0,0.00022465,2]
[322049849,1712724639807,-500.0,0.00022465,2]
[322049850,1712724639816,-546.21,0.00022465,2]
[322049851,1712724639826,-500.0,0.00022465,2]
[322049852,1712724639835,-500.0,0.00022722,2]
[322049853,1712724639844,-32389.36415125,0.00022723,2]
[322049854,1712724639853,-500.0,0.00022723,2]
[322049855,1712724639862,-500.0,0.00022723,2]
[322049856,1712724639872,-500.0,0.00022723,2]
[322049857,1712724639881,-500.0,0.00022723,2]
[322049858,1712724639890,-500.0,0.00022723,2]
[322049859,1712724639900,-500.0,0.00022723,2]
[322049860,1712724639910,-608.79359272,0.00022723,2]
[322049861,1712724639919,-500.0,0.00022723,2]
[322049862,1712724639929,-500.0,0.00022723,2]
[322049863,1712724639938,-432.81200396,0.00022723,2]
[322049864,1712724639948,-500.0,0.00022723,2]
[322049865,1712724640070,-500.0,0.00022723,2]
[322049866,1712724640080,-397.7424633,0.00022723,2]
[322049867,1712724640090,-500.0,0.00022723,2]
[322049868,1712724640099,-1619.4,0.00022723,2]
[322049869,1712724640109,-2591.52,0.00022723,2]
[322049870,1712724640118,-500.0,0.00022723,2]
[322049871,1712724640127,-634.7734702,0.00022723,2]
[322049872,1712724640137,-500.0,0.00022723,2]
[322049873,1712724640146,-1048.16,0.00022723,2]
[322049874,1712724640155,-500.0,0.00022723,2]
[322049875,1712724640165,-500.0,0.00022723,2]
[322049876,1712724640174,-500.0,0.00022723,2]
[322049877,1712724640184,-626.88,0.0002273,2]
[322049878,1712724640194,-500.0,0.0002273,2]
[322049879,1712724640204,-520.16,0.0002273,2]
[322049880,1712724640213,-500.0,0.0002273,2]
[322049881,1712724640223,-500.0,0.0002273,2]
[322049882,1712724640232,-500.0,0.0002273,2]
[322049883,1712724640242,-500.0,0.00022731,2]
[322049884,1712724640251,-500.0,0.00022731,2]
[322049885,1712724640260,-500.0,0.00022731,2]
[322049886,1712724640269,-505.0,0.00022731,2]
[322049887,1712724640279,-500.0,0.00022731,2]
[322049888,1712724640290,-2612.22,0.00022731,2]
[322049890,1712724640299,-500.0,0.00022731,2]
[322049891,1712724640308,-608.55204387,0.00022739,2]
[322049892,1712724640317,-797.37,0.00022739,2]
[322049893,1712724640327,-500.0,0.00022739,2]
[322049894,1712724640336,-500.0,0.00022739,2]
[322049895,1712724640346,-500.0,0.00022739,2]
[322049897,1712724640355,-500.0,0.00022739,2]
[322049898,1712724640365,-500.0,0.00022739,2]
[322049900,1712724640375,-546.21,0.00022739,2]
[322049901,1712724640384,-642.28,0.00022739,2]
[322049902,1712724640394,-312.70188349,0.00022903,2]
[322049903,1712724640403,-2000.0,0.00022904,2]
[322049904,1712724640413,-500.0,0.00022996,2]
[322049905,1712724640422,-500.0,0.00022997,2]
[322049906,1712724640432,-500.0,0.00022997,2]
[322049907,1712724640441,-500.0,0.00022997,2]
[322049908,1712724640450,-159.76681131,0.00022997,2]
[322049909,1712724640460,-500.0,0.00022997,2]
[322049910,1712724640469,-500.0,0.00022997,2]
[322049911,1712724640478,-500.0,0.00022997,2]
[322049912,1712724640490,-500.0,0.00022997,2]
[322049913,1712724640499,-500.0,0.00022997,2]
[322049914,1712724640508,-500.0,0.00022997,2]
[322049915,1712724640517,-500.0,0.00022997,2]
[322049916,1712724640527,-1619.4,0.00022997,2]
[322049917,1712724640538,-2591.52,0.00022997,2]
[322049918,1712724640547,-500.0,0.00022997,2]
[322049919,1712724640556,-500.0,0.00022997,2]
[322049920,1712724640566,-1048.16,0.00022997,2]
[322049921,1712724640576,-500.0,0.00022997,2]
[322049922,1712724640585,-500.0,0.00022997,2]
[322049923,1712724640594,-500.0,0.00022997,2]
[322049924,1712724640603,-626.88,0.00023004,2]
[322049925,1712724640612,-500.0,0.00023004,2]
[322049926,1712724640622,-520.16,0.00023004,2]
[322049927,1712724640630,-500.0,0.00023004,2]
[322049928,1712724640639,-500.0,0.00023004,2]
[322049929,1712724640649,-500.0,0.00023004,2]
[322049930,1712724640659,-500.0,0.00023005,2]
[322049931,1712724640669,-505.0,0.00023005,2]
[322049932,1712724640678,-284.45404807,0.00023005,2]
[322049933,1712724640687,-2612.22,0.00023005,2]
[322049934,1712724640696,-797.37,0.00023013,2]
[322049935,1712724640706,-500.0,0.00023013,2]
[322049936,1712724640716,-500.0,0.00023013,2]
[322049937,1712724640725,-500.0,0.00023013,2]
[322049938,1712724640734,-500.0,0.00023013,2]
[322049939,1712724640743,-546.21,0.00023013,2]
[322049940,1712724640753,-155.94198528,0.00023057,2]
[322049941,1712724640762,-500.0,0.0002327,2]
[322049942,1712724640771,-500.0,0.00023271,2]
[322049943,1712724640780,-500.0,0.00023271,2]
[322049944,1712724640791,-500.0,0.00023271,2]
[322049945,1712724640801,-500.0,0.00023271,2]
[322049946,1712724640810,-500.0,0.00023271,2]
[322049947,1712724640820,-500.0,0.00023271,2]
[322049948,1712724640830,-500.0,0.00023271,2]
[322049949,1712724640839,-500.0,0.00023271,2]
[322049950,1712724640848,-412.18,0.00023271,2]
[322049951,1712724640857,-500.0,0.00023271,2]
[322049952,1712724640866,-1619.4,0.00023271,2]
[322049953,1712724640876,-2591.52,0.00023271,2]
[322049954,1712724640885,-500.0,0.00023271,2]
[322049955,1712724640895,-151.0,0.00023271,2]
[322049956,1712724640904,-500.0,0.00023271,2]
[322049957,1712724640913,-1048.16,0.00023271,2]
[322049958,1712724640923,-151.0,0.00023271,2]
[322049959,1712724640932,-500.0,0.00023271,2]
[322049960,1712724640941,-151.0,0.00023271,2]
[322049961,1712724640950,-500.0,0.00023271,2]
[322049962,1712724640960,-500.0,0.00023271,2]
[322049963,1712724640969,-626.88,0.00023278,2]
[322049964,1712724640979,-500.0,0.00023278,2]
[322049965,1712724640988,-520.16,0.00023278,2]
[322049966,1712724640997,-500.0,0.00023278,2]
[322049967,1712724641006,-500.0,0.00023278,2]
[322049968,1712724641015,-151.0,0.00023278,2]
[322049969,1712724641025,-151.0,0.00023278,2]
[322049970,1712724641035,-151.0,0.00023278,2]
[322049971,1712724641044,-151.0,0.00023278,2]
[322049972,1712724641053,-4471.179231,0.00023278,2]
[322049973,1712724641062,-4471.179231,0.00023278,2]
[322049974,1712724641071,-500.0,0.00023279,2]
[322049975,1712724641080,-505.0,0.00023279,2]
[322049976,1712724641090,-2612.22,0.00023279,2]
[322049977,1712724641099,-797.37,0.00023287,2]
[322049978,1712724641108,-500.0,0.00023287,2]
[322049979,1712724641117,-500.0,0.00023287,2]
[322049980,1712724641127,-403.94,0.00023287,2]
[322049981,1712724641136,-500.0,0.00023287,2]
[322049982,1712724641146,-546.21,0.00023287,2]
[322049983,1712724641155,-500.0,0.00023544,2]
[322049984,1712724641165,-500.0,0.00023545,2]
[322049985,1712724641175,-500.0,0.00023545,2]
[322049986,1712724641184,-500.0,0.00023545,2]
[322049987,1712724641194,-500.0,0.00023545,2]
[322049988,1712724641204,-500.0,0.00023545,2]
[322049989,1712724641214,-479.92,0.00023545,2]
[322049990,1712724641224,-500.0,0.00023545,2]
[322049991,1712724641235,-438.787141,0.00023545,2]
[322049992,1712724641245,-438.787141,0.00023545,2]
[322049993,1712724641255,-500.0,0.00023545,2]
[322049994,1712724641264,-151.0,0.00023545,2]
[322049995,1712724641274,-242.992108,0.00023545,2]
[322049996,1712724641284,-500.0,0.00023545,2]
[322049997,1712724641293,-1619.4,0.00023545,2]
[322049998,1712724641302,-151.0,0.00023545,2]
[322049999,1712724641311,-151.0,0.00023545,2]
[322050000,1712724641321,-2591.52,0.00023545,2]
[322050001,1712724641331,-500.0,0.00023545,2]
[322050002,1712724641340,-500.0,0.00023545,2]
[322050003,1712724641350,-1048.16,0.00023545,2]
[322050004,1712724641360,-500.0,0.00023545,2]
[322050005,1712724641369,-189.94811751,0.00023545,2]
[322050006,1712724641379,-151.0,0.00023552,2]
[322050007,1712724641389,-626.88,0.00023552,2]
[322050008,1712724641398,-500.0,0.00023552,2]
[322050009,1712724641408,-520.16,0.00023552,2]
[322050010,1712724641417,-500.0,0.00023552,2]
[322050011,1712724641426,-500.0,0.00023552,2]
[322050012,1712724641436,-500.0,0.00023553,2]
[322050013,1712724641445,-505.0,0.00023553,2]
[322050014,1712724641455,-2612.22,0.00023553,2]
[322050015,1712724641464,-797.37,0.00023561,2]
[322050016,1712724641474,-500.0,0.00023561,2]
[322050017,1712724641483,-500.0,0.00023561,2]
[322050018,1712724641497,-558.18,0.00023561,2]
[322050019,1712724641506,-546.21,0.00023561,2]
[322050020,1712724641515,-272.88770655,0.00023713,2]
[322050021,1712724641525,-312.70188349,0.00023723,2]
[322050022,1712724641534,-155.94198528,0.00023764,2]
[322050023,1712724641543,-420.0,0.00023816,2]
[322050024,1712724641552,-254.84,0.00023818,2]
[322050025,1712724641562,-500.0,0.00023819,2]
[322050026,1712724641572,-500.0,0.00023819,2]
[322050027,1712724641583,-592.79153774,0.00023819,2]
[322050028,1712724641592,-500.0,0.00023819,2]
[322050029,1712724641601,-500.0,0.00023819,2]
[322050030,1712724641611,-500.0,0.00023819,2]
[322050031,1712724641620,-500.0,0.00023819,2]
[322050032,1712724641629,-500.0,0.00023819,2]
[322050033,1712724641638,-1619.4,0.00023819,2]
[322050034,1712724641647,-2591.52,0.00023819,2]
[322050035,1712724641657,-500.0,0.00023819,2]
[322050036,1712724641666,-151.0,0.00023819,2]
[322050037,1712724641675,-500.0,0.00023819,2]
[322050038,1712724641685,-1048.16,0.00023819,2]
[322050039,1712724641694,-500.0,0.00023819,2]
[322050040,1712724641703,-213.63436,0.00023819,2]
[322050041,1712724641713,-151.0,0.00023824,2]
[322050042,1712724641722,-151.0,0.00023824,2]
[322050043,1712724641735,-151.0,0.00023824,2]
[322050044,1712724641744,-151.0,0.00023824,2]
[322050045,1712724641754,-151.0,0.00023824,2]
[322050046,1712724641763,-151.0,0.00023824,2]
[322050047,1712724641772,-4471.179231,0.00023824,2]
[322050048,1712724641781,-4471.179231,0.00023824,2]
[322050049,1712724641791,-151.0,0.00023826,2]
[322050050,1712724641800,-151.0,0.00023826,2]
[322050051,1712724641809,-151.0,0.00023826,2]
[322050052,1712724641818,-155.045773,0.00023826,2]
[322050053,1712724641828,-151.0,0.00023826,2]
[322050054,1712724641837,-626.88,0.00023826,2]
[322050055,1712724641846,-438.787141,0.00023826,2]
[322050056,1712724641855,-438.787141,0.00023826,2]
[322050057,1712724641865,-151.0,0.00023826,2]
[322050058,1712724641874,-500.0,0.00023826,2]
[322050059,1712724641883,-520.16,0.00023826,2]
[322050060,1712724641892,-500.0,0.00023826,2]
[322050061,1712724641901,-151.0,0.00023826,2]
[322050062,1712724641911,-151.0,0.00023826,2]
[322050063,1712724641920,-500.0,0.00023826,2]
[322050064,1712724641929,-203.24,0.00023827,2]
[322050065,1712724641939,-505.0,0.00023827,2]
[322050066,1712724641948,-2612.22,0.00023827,2]
[322050067,1712724641957,-797.37,0.00023835,2]
[322050068,1712724641966,-500.0,0.00023835,2]
[322050069,1712724641975,-500.0,0.00023835,2]
[322050070,1712724641984,-546.21,0.00023835,2]
[322050071,1712724641993,-1087.50404334,0.00023999,2]
[322050072,1712724642002,-8134.44400979,0.00024,2]
[322050073,1712724642011,-500.0,0.00024093,2]
[322050074,1712724642021,-500.0,0.00024093,2]
[322050075,1712724642030,-429.20825194,0.00024093,2]
[322050076,1712724642040,-500.0,0.00024093,2]
[322050077,1712724642049,-500.0,0.00024093,2]
[322050078,1712724642058,-500.0,0.00024093,2]
[322050079,1712724642068,-500.0,0.00024093,2]
[322050080,1712724642076,-1619.4,0.00024093,2]
[322050081,1712724642085,-2591.52,0.00024093,2]
[322050082,1712724642094,-500.0,0.00024093,2]
[322050083,1712724642104,-500.0,0.00024093,2]
[322050084,1712724642114,-1048.16,0.00024093,2]
[322050085,1712724642123,-307.06,0.00024093,2]
[322050086,1712724642132,-626.88,0.000241,2]
[322050087,1712724642142,-500.0,0.000241,2]
[322050088,1712724642151,-520.16,0.000241,2]
[322050089,1712724642160,-500.0,0.000241,2]
[322050090,1712724642169,-171.145398,0.000241,2]
[322050091,1712724642179,-505.0,0.00024101,2]
[322050092,1712724642188,-151.674312,0.00024101,2]
[322050093,1712724642197,-2612.22,0.00024101,2]
[322050094,1712724642207,-420.0,0.00024107,2]
[322050095,1712724642215,-797.37,0.00024109,2]
[322050096,1712724642225,-500.0,0.00024109,2]
[322050097,1712724642235,-500.0,0.00024109,2]
[322050098,1712724642244,-546.21,0.00024109,2]
[322050099,1712724642253,-211.46315052,0.00024366,2]
[322050100,1712724642262,-500.0,0.00024367,2]
[322050101,1712724642272,-500.0,0.00024367,2]
[322050102,1712724642281,-500.0,0.00024367,2]
[322050103,1712724642290,-500.0,0.00024367,2]
[322050104,1712724642299,-500.0,0.00024367,2]
[322050105,1712724642309,-500.0,0.00024367,2]
[322050106,1712724642318,-1619.4,0.00024367,2]
[322050107,1712724642326,-2591.52,0.00024367,2]
[322050108,1712724642336,-151.0,0.00024367,2]
[322050109,1712724642345,-162.714672,0.00024367,2]
[322050110,1712724642354,-500.0,0.00024367,2]
[322050111,1712724642363,-153.243674,0.00024367,2]
[322050112,1712724642373,-151.0,0.00024367,2]
[322050113,1712724642382,-4471.179231,0.00024367,2]
[322050114,1712724642391,-4471.179231,0.00024367,2]
[322050115,1712724642400,-500.0,0.00024367,2]
[322050116,1712724642409,-1048.16,0.00024367,2]
[322050117,1712724642419,-151.0,0.00024372,2]
[322050118,1712724642428,-244.651652,0.00024372,2]
[322050119,1712724642437,-626.88,0.00024374,2]
[322050120,1712724642446,-438.787141,0.00024374,2]
[322050121,1712724642455,-438.787141,0.00024374,2]
[322050122,1712724642465,-151.0,0.00024374,2]
[322050123,1712724642475,-500.0,0.00024374,2]
[322050124,1712724642484,-520.16,0.00024374,2]
[322050125,1712724642497,-500.0,0.00024374,2]
[322050126,1712724642506,-151.0,0.00024374,2]
[322050127,1712724642515,-151.719355,0.00024375,2]
[322050128,1712724642602,-151.0,0.00024375,2]
[322050129,1712724642621,-151.0,0.00024375,2]
[322050130,1712724642631,-151.0,0.00024375,2]
[322050131,1712724642640,-505.0,0.00024375,2]
[322050132,1712724642649,-2612.22,0.00024375,2]
[322050133,1712724642659,-797.37,0.00024383,2]
[322050134,1712724642668,-500.0,0.00024383,2]
[322050135,1712724642678,-509.83864137,0.00024383,2]
[322050136,1712724642688,-546.21,0.00024383,2]
[322050137,1712724642698,-155.94198528,0.0002447,2]
[322050138,1712724642708,-312.70188349,0.00024543,2]
[322050139,1712724642717,-500.0,0.00024641,2]
[322050140,1712724642728,-500.0,0.00024641,2]
[322050141,1712724642738,-500.0,0.00024641,2]
[322050142,1712724642748,-500.0,0.00024641,2]
[322050143,1712724642758,-500.0,0.00024641,2]
[322050144,1712724642768,-500.0,0.00024641,2]
[322050145,1712724642779,-1619.4,0.00024641,2]
[322050146,1712724642790,-2591.52,0.00024641,2]
[322050147,1712724642800,-500.0,0.00024641,2]
[322050148,1712724642809,-500.0,0.00024641,2]
[322050149,1712724642818,-1048.16,0.00024641,2]
[322050150,1712724642828,-626.88,0.00024648,2]
[322050151,1712724642837,-500.0,0.00024648,2]
[322050152,1712724642846,-520.16,0.00024648,2]
[322050153,1712724642856,-626.98,0.00024648,2]
[322050154,1712724642865,-505.0,0.00024649,2]
[322050155,1712724642875,-2612.22,0.00024649,2]
[322050156,1712724642884,-797.37,0.00024657,2]
[322050157,1712724642892,-500.0,0.00024657,2]
[322050158,1712724642902,-546.21,0.00024657,2]
[322050159,1712724642911,-500.0,0.00024915,2]
[322050160,1712724642920,-500.0,0.00024915,2]
[322050161,1712724642929,-500.0,0.00024915,2]
[322050162,1712724642938,-500.0,0.00024915,2]
[322050164,1712724642947,-500.0,0.00024915,2]
[322050165,1712724642956,-408.53737967,0.00024915,2]
[322050166,1712724642972,-91.46262033,0.00024915,2]
[322050167,1712724642981,-1619.4,0.00024915,2]
[322050168,1712724642990,-2348.56790183,0.00024915,2]
[322050182,1712724646756,-500.0,0.00021917,2]
[322050183,1712724646766,-500.0,0.00022191,2]
[322050184,1712724646775,-500.0,0.00022465,2]
[322050185,1712724646784,-242.95209817,0.00024915,2]
[322050186,1712724646794,-151.0,0.00024915,2]
[322050187,1712724646804,-500.0,0.00024915,2]
[322050188,1712724646813,-151.0,0.00024915,2]
[322050189,1712724646823,-4471.179231,0.00024915,2]
[322050190,1712724646832,-4471.179231,0.00024915,2]
[322050191,1712724646842,-500.0,0.00024915,2]
[322050192,1712724646851,-1048.16,0.00024915,2]
[322050193,1712724646860,-626.88,0.00024922,2]
[322050194,1712724646870,-500.0,0.00024922,2]
[322050195,1712724646879,-520.16,0.00024922,2]
[322050196,1712724646888,-505.0,0.00024923,2]
[322050197,1712724646897,-2612.22,0.00024923,2]
[322050198,1712724646906,-500.0,0.00024931,2]
[322050199,1712724646916,-546.21,0.00024931,2]
[322050200,1712724646926,-7576.83394587,0.00025,7]
[322050201,1712724646935,-220.22760662,0.00025,2]
[322050203,1712724646944,-151.0,0.00025,2]
[322050205,1712724646953,-438.787141,0.00025,2]
[322050206,1712724646962,-438.787141,0.00025,2]
[322050207,1712724646971,-151.0,0.00025,2]
[322050208,1712724646980,-151.0,0.00025,2]
[322050209,1712724646989,-155.94198528,0.00025177,2]
[322050210,1712724646999,-556.3773897,0.00025189,2]
[322050211,1712724647008,-500.0,0.00025189,2]
[322050212,1712724647017,-500.0,0.00025189,2]
[322050213,1712724647027,-500.0,0.00025189,2]
[322050214,1712724647037,-500.0,0.00025189,2]
[322050215,1712724647046,-1619.4,0.00025189,2]
[322050216,1712724647056,-2591.52,0.00025189,2]
[322050217,1712724647065,-500.0,0.00025189,2]
[322050218,1712724647075,-567.33,0.00025189,2]
[322050219,1712724647084,-1048.16,0.00025189,2]
[322050220,1712724647094,-626.88,0.00025196,2]
[322050221,1712724647103,-500.0,0.00025196,2]
[322050222,1712724647112,-520.16,0.00025196,2]
[322050223,1712724647122,-151.0,0.00025197,2]
[322050224,1712724647131,-151.0,0.00025197,2]
[322050225,1712724647141,-151.0,0.00025197,2]
[322050226,1712724647150,-505.0,0.00025197,2]
[322050227,1712724647159,-2612.22,0.00025197,2]
[322050228,1712724647169,-151.0,0.00025197,2]